bitfinex/quotes_BTCUSD_20260310
["timestamp","ask_amount","ask_price","bid_price","bid_amount"]
[1773156638119,0.03,71469.0,71447.0,0.06998154]
[1773156638417,0.03,71469.0,71442.0,0.06998628]
[1773156638418,0.03011235,71469.0,71442.0,0.06998628]
[1773156638672,0.03011235,71469.0,71440.0,0.05601614]
[1773156638673,0.03011235,71469.0,71440.0,0.00562]
[1773156638674,0.03,71457.0,71440.0,0.00562]
[1773156638850,0.03,71457.0,71441.0,0.00144]
[1773156639386,0.03,71457.0,71440.0,0.07560859]
[1773156639387,0.03,71455.0,71442.0,0.00144]
[1773156639593,0.03,71455.0,71443.0,0.05614446]
[1773156639816,0.03,71455.0,71443.0,0.05039614]
[1773156640009,0.03,71455.0,71444.0,0.00144]
[1773156640238,0.03,71454.0,71445.0,0.00728315]
[1773156640857,0.06996303,71467.0,71445.0,0.00729105]
[1773156641059,0.06995715,71473.0,71446.0,0.05039614]
[1773156641263,0.03,71477.0,71454.0,0.10823731]
[1773156641482,0.06994093,71489.0,71462.0,0.05039614]
[1773156641762,0.06994093,71489.0,71464.0,0.05039614]
[1773156642083,0.06994093,71489.0,71466.0,0.05039614]
[1773156642369,0.03,71488.0,71468.0,0.05039614]
[1773156642573,0.03,71488.0,71460.0,0.2652437]
[1773156642574,0.03,71486.0,71469.0,0.00144]
[1773156642779,0.03,71486.0,71462.0,0.001]
[1773156642780,0.00051,71485.0,71462.0,0.001]
[1773156642980,0.00051,71485.0,71454.0,0.00011235]
[1773156642981,0.03,71479.0,71454.0,0.00011235]
[1773156643166,0.03,71476.0,71456.0,0.0714127]
[1773156643362,0.00051,71475.0,71456.0,0.00144]
[1773156643527,0.00051,71475.0,71450.0,0.07020812]
[1773156643528,0.00051,71475.0,71457.0,0.00144]
[1773156643529,0.03,71469.0,71457.0,0.00144]
[1773156643901,0.03011235,71469.0,71457.0,0.00144]
[1773156644526,0.06995257,71477.0,71457.0,0.00144]
[1773156644527,0.00051,71477.0,71457.0,0.00144]
[1773156644709,0.06994824,71482.0,71458.0,0.05789047]
[1773156644908,0.07045824,71482.0,71458.0,0.05789047]
[1773156645109,0.00144,71488.0,71457.0,0.00155235]
[1773156645110,0.06993496,71495.0,71460.0,0.15700639]
[1773156645255,0.06993496,71495.0,71466.0,0.05039614]
[1773156645256,0.001,71479.0,71466.0,0.05039614]
[1773156645451,0.00051,71494.0,71468.0,0.05039614]
[1773156645696,0.03051,71494.0,71469.0,0.14220339]
[1773156645897,0.03051,71494.0,71470.0,0.13629573]
[1773156646071,0.03051,71494.0,71470.0,0.00853141]
[1773156646276,0.03,71489.0,71471.0,0.00144]
[1773156646476,0.00051,71488.0,71472.0,0.00144]
[1773156646673,0.00051,71488.0,71472.0,0.00129449]
[1773156647301,0.03,71486.0,71472.0,0.00129449]
[1773156647519,0.03051,71486.0,71472.0,0.07125188]
[1773156647747,0.03051,71486.0,71472.0,0.07125181]
[1773156648161,0.03,71486.0,71472.0,0.07125181]
[1773156648674,0.06994278,71488.0,71472.0,0.07125181]
[1773156648675,0.06994278,71488.0,71473.0,0.00144]
[1773156648676,0.03,71485.0,71473.0,0.00144]
[1773156648894,0.06994195,71488.0,71457.0,0.07008404]
[1773156648895,0.03,71482.0,71457.0,0.07008404]
[1773156649107,0.03,71482.0,71457.0,0.07008382]
[1773156649108,0.00195,71481.0,71457.0,0.07008382]
[1773156649333,0.00195,71481.0,71458.0,0.00144]
[1773156649334,0.03,71479.0,71458.0,0.00144]
[1773156649563,0.06994963,71480.0,71456.0,0.00144]
[1773156649564,0.03,71469.0,71456.0,0.00144]
[1773156649775,0.00051,71468.0,71458.0,0.00022]
[1773156650225,0.03011235,71469.0,71458.0,0.00022]
[1773156650642,0.03,71468.0,71458.0,0.00022]
[1773156650967,0.06994306,71487.0,71459.0,0.10823731]
[1773156651188,0.001,71486.0,71467.0,0.06996236]
[1773156651551,0.0709451,71485.0,71468.0,0.00144]
[1773156651872,0.03,71484.0,71469.0,0.00144]
[1773156652438,0.03,71484.0,71470.0,0.00144]
[1773156653053,0.03,71483.0,71471.0,0.00144]
[1773156653261,0.03,71481.0,71472.0,0.06995746]
[1773156654268,0.03,71481.0,71462.0,0.10823731]
[1773156654404,0.03,71480.0,71463.0,0.07140625]
[1773156654793,0.18700639,71480.0,71459.0,0.07008252]
[1773156655051,0.18700639,71480.0,71460.0,0.00144]
[1773156655346,0.03,71478.0,71461.0,0.06996823]
[1773156655503,0.03,71478.0,71462.0,0.00144]
[1773156655703,0.03,71478.0,71462.0,0.0012945]
[1773156656104,0.03,71478.0,71459.0,0.07008243]
[1773156656327,0.03,71478.0,71463.0,0.00144]
[1773156656715,0.03,71478.0,71451.0,0.06997802]
[1773156656926,0.00144,71477.0,71452.0,0.00144]
[1773156657122,0.00144,71477.0,71451.0,0.06997802]
[1773156657327,0.03,71475.0,71454.0,0.06997508]
[1773156657979,0.03,71475.0,71453.0,0.00144]
[1773156658140,0.03,71475.0,71453.0,0.07141585]
[1773156658556,0.03,71475.0,71453.0,0.00144]
[1773156658776,0.03,71475.0,71455.0,0.05039614]
[1773156658998,0.00112259,71474.0,71456.0,0.13521369]
[1773156659174,0.00112259,71474.0,71455.0,0.05039614]
[1773156659455,0.00112259,71474.0,71454.0,0.06997508]
[1773156659456,0.03,71472.0,71456.0,0.20519746]
[1773156659678,0.03,71472.0,71457.0,0.135225]
[1773156659879,0.03,71472.0,71456.0,0.06997246]
[1773156660084,0.03,71472.0,71457.0,0.13520364]
[1773156660281,0.03,71472.0,71454.0,0.07019508]
[1773156660554,0.03,71472.0,71455.0,0.13522516]
[1773156660762,0.03,71472.0,71454.0,0.00022]
[1773156660962,0.03,71469.0,71440.0,0.00562]
[1773156661186,0.06995648,71473.0,71441.0,0.00144]
[1773156661187,0.03,71459.0,71441.0,0.00144]
[1773156661412,0.03,71459.0,71441.0,0.07142769]
[1773156661413,0.03,71457.0,71441.0,0.07142769]
[1773156661614,0.03,71457.0,71440.0,0.00562]
[1773156661815,0.03,71457.0,71440.0,0.07560874]
[1773156662041,0.06997117,71461.0,71440.0,0.07560874]
[1773156662043,0.0002,71489.0,71442.0,0.05039614]
[1773156662423,0.07014099,71489.0,71462.0,0.10823602]
[1773156662622,0.03,71488.0,71464.0,0.05039614]
[1773156663085,0.03,71488.0,71465.0,0.00144]
[1773156663556,0.03,71486.0,71468.0,0.05039614]
[1773156664549,0.06993629,71494.0,71467.0,0.06801236]
[1773156664550,0.03023,71500.0,71470.0,0.15700639]
[1773156664751,0.03562,71496.0,71471.0,0.05039614]
[1773156664948,0.03562,71496.0,71475.0,0.10823602]
[1773156665169,0.03562,71496.0,71477.0,0.05039614]
[1773156665379,0.03562,71496.0,71479.0,0.05039614]
[1773156665573,0.03562,71496.0,71478.0,0.06995159]
[1773156665574,0.06992719,71503.0,71478.0,0.06995159]
[1773156665575,0.06992188,71509.0,71480.0,0.01164145]
[1773156665939,0.06991873,71512.0,71480.0,0.01164145]
[1773156665940,0.03,71508.0,71484.0,0.10823602]
[1773156666122,0.03,71508.0,71485.0,0.00144]
[1773156666437,0.03,71508.0,71485.0,0.04191277]
[1773156666797,0.03,71507.0,71485.0,0.04191277]
[1773156667195,0.03011241,71507.0,71485.0,0.04191277]
[1773156667521,0.10003588,71507.0,71487.0,0.04047277]
[1773156667908,0.10003588,71507.0,71488.0,0.00144]
[1773156668501,0.10003588,71507.0,71489.0,0.04047277]
[1773156668719,0.10003588,71507.0,71484.0,0.06994376]
[1773156668720,0.10003588,71507.0,71475.0,0.00023]
[1773156668721,0.03,71499.0,71475.0,0.00023]
[1773156668948,0.03,71499.0,71483.0,0.00144]
[1773156669384,0.03,71497.0,71484.0,0.00144]
[1773156669594,0.03,71497.0,71482.0,0.00144]
[1773156670220,0.03,71497.0,71475.0,0.07018398]
[1773156670434,0.03,71497.0,71477.0,0.00144]
[1773156670639,0.03,71497.0,71475.0,0.07018398]
[1773156670640,0.03,71489.0,71475.0,0.00023]
[1773156670838,0.0014,71488.0,71475.0,0.00023]
[1773156671249,0.0014,71488.0,71468.0,0.00562]
[1773156671446,0.0014,71488.0,71468.0,0.00706]
[1773156671447,0.03,71486.0,71468.0,0.00706]
[1773156671647,0.03,71486.0,71468.0,0.00562]
[1773156672592,0.0014,71485.0,71468.0,0.00562]
[1773156672820,0.03,71486.0,71468.0,0.07558098]
[1773156673025,0.03,71486.0,71469.0,0.17671598]
[1773156673189,0.03,71486.0,71470.0,0.13511568]
[1773156673367,0.03,71486.0,71471.0,0.13511568]
[1773156673562,0.06994278,71487.0,71472.0,0.13655568]
[1773156673563,0.06994374,71487.0,71472.0,0.13655568]
[1773156673826,0.06994278,71490.0,71474.0,0.04047277]
[1773156673827,0.0385413,71489.0,71474.0,0.04047277]
[1773156674026,0.0385413,71489.0,71475.0,0.13511568]
[1773156674248,0.0385413,71489.0,71470.0,0.06995844]
[1773156674249,0.0385413,71489.0,71461.0,0.14870879]
[1773156674541,0.0385413,71489.0,71472.0,0.00144]
[1773156674823,0.03,71488.0,71472.0,0.00144]
[1773156674972,0.03,71488.0,71461.0,0.04047277]
[1773156674973,0.0385413,71489.0,71464.0,0.00144]
[1773156674974,0.03,71479.0,71464.0,0.00144]
[1773156675178,0.03,71479.0,71449.0,0.10823602]
[1773156675179,0.0014,71478.0,71456.0,0.0701927]
[1773156675418,0.0014,71478.0,71460.0,0.00144]
[1773156675636,0.0014,71478.0,71460.0,0.07140839]
[1773156675637,0.03,71476.0,71460.0,0.07140839]
[1773156675972,0.03,71476.0,71460.0,0.00144]
[1773156676186,0.03,71476.0,71460.0,0.07140886]
[1773156676540,0.03,71476.0,71460.0,0.00144]
[1773156676749,0.03,71476.0,71460.0,0.07140906]
[1773156676964,0.03,71476.0,71460.0,0.00144]
[1773156677634,0.03,71476.0,71455.0,0.06997393]
[1773156677635,0.03,71469.0,71448.0,0.00022]
[1773156677856,0.09588966,71475.0,71440.0,1e-08]
[1773156677857,0.03,71459.0,71440.0,1e-08]
[1773156678065,0.03,71459.0,71434.0,0.07031068]
[1773156678066,0.0014,71458.0,71434.0,0.07031068]
[1773156678266,0.0014,71458.0,71435.0,0.00144]
[1773156678615,0.0014,71458.0,71434.0,0.06980023]
[1773156678815,0.0014,71458.0,71435.0,0.00144]
[1773156679278,0.0014,71458.0,71423.0,0.0700049]
[1773156679279,0.0014,71458.0,71425.0,0.00023]
[1773156679280,0.02549123,71448.0,71425.0,0.00023]
[1773156679488,0.02549123,71448.0,71412.0,0.00562]
[1773156679489,0.15665258,71450.0,71416.0,1e-08]
[1773156679490,0.03,71429.0,71416.0,1e-08]
[1773156679690,0.03,71427.0,71416.0,1e-08]
[1773156680639,0.06999608,71433.0,71416.0,0.00037492]
[1773156680640,0.03,71426.0,71416.0,0.00037492]
[1773156681713,0.03,71424.0,71416.0,0.00181492]
[1773156681913,0.03,71424.0,71416.0,0.07038701]
[1773156682130,0.0699986,71430.0,71416.0,0.07138701]
[1773156682265,0.06999746,71432.0,71417.0,0.00144]
[1773156682463,0.06998978,71439.0,71417.0,0.00144]
[1773156682464,0.06999259,71437.0,71417.0,0.03586706]
[1773156682688,0.03,71436.0,71417.0,0.03586706]
[1773156682905,0.03,71436.0,71418.0,0.00144]
[1773156683320,0.03,71436.0,71416.0,0.00037492]
[1773156683526,0.06999259,71437.0,71401.0,1e-08]
[1773156683527,0.03,71429.0,71401.0,1e-08]
[1773156683863,0.03,71429.0,71401.0,0.0001125]
[1773156683864,0.03,71409.0,71401.0,0.0001125]
[1773156684146,0.00023,71425.0,71402.0,0.00144]
[1773156684336,0.23226196,71440.0,71404.0,0.03442706]
[1773156684337,0.00562,71440.0,71404.0,0.03442706]
[1773156684538,0.00562,71440.0,71403.0,0.10662796]
[1773156684539,0.00562,71440.0,71411.0,0.03442706]
[1773156684540,0.07560889,71440.0,71411.0,0.03442706]
[1773156684734,0.00562,71440.0,71413.0,0.03442706]
[1773156684888,0.00562,71440.0,71410.0,0.15665258]
[1773156684889,0.00562,71440.0,71415.0,0.03442706]
[1773156685090,0.00562,71440.0,71417.0,0.03442706]
[1773156685282,0.00562,71440.0,71419.0,0.03442706]
[1773156685486,0.00562,71440.0,71420.0,0.00123049]
[1773156685689,0.00562,71440.0,71421.0,0.07000742]
[1773156685896,0.07560902,71440.0,71422.0,0.00144]
[1773156686094,0.03,71439.0,71422.0,0.00144]
[1773156686511,0.03,71439.0,71421.0,0.07000742]
[1773156686779,0.03,71439.0,71423.0,0.00144]
[1773156687627,0.03,71438.0,71425.0,0.0700035]
[1773156687836,0.09999093,71438.0,71425.0,0.0700035]
[1773156688028,0.09999093,71438.0,71425.0,0.070116]
[1773156688196,0.03,71438.0,71425.0,0.070116]
[1773156688800,0.00023,71450.0,71427.0,0.03442706]
[1773156688998,0.00023,71450.0,71425.0,0.070116]
[1773156688999,0.00023,71450.0,71428.0,0.00144]
[1773156689000,0.22686243,71450.0,71428.0,0.00144]
[1773156689215,0.07020985,71450.0,71428.0,0.00144]
[1773156689447,0.07020985,71450.0,71425.0,0.070116]
[1773156689757,0.07020985,71450.0,71413.0,0.07001526]
[1773156689758,0.03,71439.0,71413.0,0.07001526]
[1773156689956,0.0014,71438.0,71418.0,0.00144]
[1773156690479,0.0014,71438.0,71405.0,0.07002251]
[1773156690480,0.03,71429.0,71405.0,0.07002251]
[1773156690698,0.0014,71428.0,71406.0,0.00144]
[1773156691094,0.03,71429.0,71406.0,0.00144]
[1773156691238,0.03,71429.0,71404.0,0.07002408]
[1773156691446,0.02551787,71436.0,71405.0,0.00144]
[1773156691447,0.0314,71428.0,71405.0,0.00144]
[1773156691675,0.03,71425.0,71406.0,0.07002212]
[1773156691897,0.07099969,71429.0,71407.0,0.03768918]
[1773156692098,0.06999969,71429.0,71407.0,0.03768918]
[1773156692584,0.06999969,71429.0,71408.0,0.00144]
[1773156692778,0.03,71428.0,71408.0,0.00144]
[1773156693041,0.03,71428.0,71407.0,0.03442706]
[1773156693246,0.03,71428.0,71409.0,0.00144]
[1773156693418,0.03,71428.0,71410.0,0.00144]
[1773156694034,0.03,71426.0,71411.0,0.07001722]
[1773156694229,0.06999958,71432.0,71411.0,0.07001722]
[1773156694230,0.06999272,71436.0,71412.0,0.03442706]
[1773156694455,0.06999272,71436.0,71408.0,0.07001722]
[1773156694456,0.06999272,71436.0,71404.0,0.07002408]
[1773156694457,0.15665258,71422.0,71404.0,0.07002408]
[1773156694657,0.0278235,71435.0,71408.0,0.00144]
[1773156694658,0.03,71421.0,71408.0,0.00144]
[1773156695479,0.03,71420.0,71404.0,0.07002408]
[1773156695712,0.03,71420.0,71400.0,0.00023]
[1773156695713,0.18665258,71420.0,71400.0,0.00023]
[1773156695906,0.03,71420.0,71400.0,0.0702578]
[1773156696169,0.03,71418.0,71400.0,0.0702578]
[1773156696376,0.03,71418.0,71400.0,0.00167]
[1773156696577,0.03,71418.0,71400.0,0.07169705]
[1773156696996,0.03,71418.0,71401.0,0.10662795]
[1773156696997,0.0014,71417.0,71401.0,0.10662795]
[1773156697203,0.03,71417.0,71401.0,0.10662795]
[1773156697608,0.06998978,71439.0,71407.0,0.03442706]
[1773156697816,0.0002,71426.0,71409.0,0.03442706]
[1773156698225,0.03,71424.0,71410.0,0.0700182]
[1773156698832,0.03,71424.0,71411.0,0.00144]
[1773156699202,0.001,71418.0,71410.0,0.00144]
[1773156699433,0.001,71418.0,71390.0,0.07003724]
[1773156699434,0.001,71418.0,71402.0,0.03]
[1773156699636,0.001,71418.0,71402.0,0.00155252]
[1773156699952,0.001,71418.0,71400.0,0.00023]
[1773156700160,0.07001232,71416.0,71398.0,0.00022]
[1773156700365,0.07001232,71416.0,71399.0,0.07002899]
[1773156700583,0.07001232,71416.0,71398.0,0.00022]
[1773156700584,0.03,71415.0,71398.0,0.00022]
[1773156700783,0.03,71415.0,71398.0,0.07024975]
[1773156700784,0.0314,71415.0,71398.0,0.07024975]
[1773156701615,0.07001232,71416.0,71398.0,0.07024975]
[1773156701616,0.03,71416.0,71399.0,0.03442706]
[1773156701788,0.07023393,71425.0,71399.0,0.03715224]
[1773156701945,0.07023393,71425.0,71402.0,0.03442706]
[1773156702151,0.07023393,71425.0,71406.0,0.03442706]
[1773156702359,0.07023393,71425.0,71407.0,0.00144]
[1773156702566,0.07023393,71425.0,71408.0,0.00144]
[1773156702735,0.03,71424.0,71405.0,0.0700231]
[1773156702941,0.03,71424.0,71406.0,0.00144]
[1773156704313,0.03,71422.0,71407.0,0.07002114]
[1773156705719,0.03,71421.0,71407.0,0.07002114]
[1773156705910,0.00023,71425.0,71408.0,0.03641598]
[1773156706110,0.07023404,71425.0,71408.0,0.03442706]
[1773156706315,0.07023404,71425.0,71410.0,0.03442706]
[1773156706838,0.03,71424.0,71410.0,0.03442706]
[1773156707653,0.069997,71432.0,71410.0,0.03442706]
[1773156707654,0.06999122,71438.0,71410.0,0.03442706]
[1773156707885,0.00023,71450.0,71417.0,0.03385479]
[1773156708096,0.00023,71450.0,71416.0,0.10801447]
[1773156708097,0.07020917,71450.0,71421.0,0.03385479]
[1773156708297,0.22686175,71450.0,71422.0,0.07000644]
[1773156708529,0.22686175,71450.0,71423.0,0.00144]
[1773156708939,0.03,71449.0,71423.0,0.00144]
[1773156709136,0.03,71449.0,71424.0,0.03385479]
[1773156709387,0.06996894,71461.0,71432.0,0.03284426]
[1773156709528,0.06996894,71461.0,71434.0,0.03284426]
[1773156709529,0.51492014,71450.0,71434.0,0.03284426]
[1773156709737,0.08059841,71450.0,71434.0,0.03284426]
[1773156710136,0.03,71460.0,71434.0,0.03284426]
[1773156710337,0.03,71458.0,71436.0,0.03284426]
[1773156711341,0.03171207,71472.0,71436.0,0.03284426]
[1773156711342,0.09995949,71470.0,71436.0,0.03284426]
[1773156711541,0.06995869,71471.0,71436.0,0.03284426]
[1773156711542,0.03562,71468.0,71438.0,0.03284426]
[1773156711747,0.03562,71468.0,71440.0,0.03284426]
[1773156712383,0.03562,71468.0,71442.0,0.03284426]
[1773156712588,0.45791154,71507.0,71441.0,0.17800229]
[1773156712589,0.03,71480.0,71451.0,0.03284426]
[1773156712811,0.0004441,71489.0,71462.0,0.03284426]
[1773156712812,0.07038559,71489.0,71462.0,0.03284426]
[1773156713019,0.07038506,71489.0,71464.0,0.03284426]
[1773156713646,0.03,71488.0,71464.0,0.03284426]
[1773156713845,0.07038506,71489.0,71450.0,0.26489705]
[1773156713846,0.03,71479.0,71460.0,0.00144]
[1773156713995,0.03,71479.0,71450.0,0.03307426]
[1773156713996,0.00144,71478.0,71461.0,0.00144]
[1773156714416,0.00144,71478.0,71450.0,0.03307426]
[1773156714417,0.0544247,71476.0,71454.0,0.00144]
[1773156714618,0.0544247,71476.0,71455.0,0.00144]
[1773156714821,0.03,71476.0,71455.0,0.00144]
[1773156715029,0.03,71476.0,71450.0,0.07020859]
[1773156715205,0.03,71476.0,71451.0,0.00144]
[1773156716431,0.03,71476.0,71452.0,0.06997704]
[1773156716432,0.03,71474.0,71452.0,0.06997704]
[1773156716642,0.03,71474.0,71453.0,0.03284426]
[1773156717034,0.03,71474.0,71454.0,0.00144]
[1773156717435,0.03,71474.0,71453.0,0.03284426]
[1773156717641,0.00144,71473.0,71454.0,0.00144]
[1773156718076,0.00144,71473.0,71452.0,0.00144]
[1773156718077,0.03,71469.0,71452.0,0.00144]
[1773156718397,0.03,71469.0,71451.0,0.00144]
[1773156718542,0.03,71467.0,71451.0,0.00144]
[1773156718743,0.00144,71466.0,71451.0,0.00144]
[1773156719041,0.00144,71466.0,71451.0,0.07141741]
[1773156719245,0.03,71467.0,71451.0,0.07141741]
[1773156719461,0.03,71467.0,71452.0,0.03284426]
[1773156719704,0.03,71467.0,71452.0,0.00037491]
[1773156720409,0.08084393,71467.0,71452.0,0.00037491]
[1773156720574,0.03,71465.0,71453.0,0.06997606]
[1773156720785,0.12080726,71466.0,71447.0,0.06998127]
[1773156720786,0.03,71463.0,71447.0,0.06998127]
[1773156720990,0.03,71459.0,71448.0,0.00144]
[1773156721207,0.03,71459.0,71449.0,0.00144]
[1773156721521,0.03,71459.0,71450.0,0.00144]
[1773156721832,0.03,71459.0,71451.0,0.00144]
[1773156722066,0.03,71461.0,71452.0,0.00144]
[1773156722273,0.03,71459.0,71452.0,0.00144]
[1773156722685,0.03,71457.0,71452.0,0.00144]
[1773156722901,0.03,71457.0,71439.0,0.00532064]
[1773156722902,0.06997117,71458.0,71412.0,0.00562]
[1773156722903,0.03,71451.0,71412.0,0.00562]
[1773156723108,0.06928211,71454.0,71425.0,1e-08]
[1773156723109,0.03,71445.0,71425.0,1e-08]
[1773156723289,0.03,71439.0,71425.0,1e-08]
[1773156723505,0.00144,71444.0,71421.0,0.00144]
[1773156723506,0.03,71433.0,71421.0,0.00144]
[1773156723707,0.03,71431.0,71422.0,0.00144]
[1773156724126,0.00144,71437.0,71410.0,0.07023782]
[1773156724127,0.05084393,71428.0,71414.0,0.00144]
[1773156724333,0.05084393,71428.0,71412.0,0.07563574]
[1773156724334,0.03,71427.0,71415.0,0.00144]
[1773156724534,0.03,71427.0,71416.0,0.07001232]
[1773156724737,0.07143549,71434.0,71416.0,0.07001232]
[1773156724738,0.06999549,71434.0,71416.0,0.07001232]
[1773156725144,0.06999345,71436.0,71426.0,0.00048]
[1773156725301,0.08084393,71435.0,71426.0,0.00048]
[1773156726865,0.03,71433.0,71426.0,0.07048184]
[1773156727633,0.03,71432.0,71426.0,0.07048184]
[1773156727844,0.03,71432.0,71426.0,0.00048]
[1773156729461,0.03,71432.0,71426.0,0.07048231]
[1773156729596,0.05084393,71436.0,71426.0,0.07048231]
[1773156729823,0.15730512,71450.0,71426.0,0.07048231]
[1773156729824,0.03,71441.0,71426.0,0.07048231]
[1773156730251,0.05084393,71440.0,71426.0,1e-08]
[1773156730455,0.05084393,71440.0,71418.0,0.00144]
[1773156730456,0.03,71435.0,71418.0,0.00144]
[1773156730688,0.03,71429.0,71418.0,0.00144]
[1773156730890,0.03,71429.0,71416.0,0.07001232]
[1773156731098,0.05084393,71430.0,71417.0,0.00144]
[1773156731099,0.03,71427.0,71417.0,0.00144]
[1773156731791,0.06999475,71434.0,71417.0,0.00144]
[1773156731792,0.06999483,71434.0,71418.0,0.00645066]
[1773156731998,0.03,71434.0,71418.0,0.00645066]
[1773156732222,0.06998782,71441.0,71418.0,0.00645066]
[1773156732396,0.06998023,71449.0,71420.0,0.15687512]
[1773156732595,0.06998023,71449.0,71421.0,0.00505023]
[1773156732916,0.05084393,71448.0,71422.0,0.00144]
[1773156733124,0.05084393,71448.0,71423.0,0.07000546]
[1773156733125,0.08084393,71443.0,71423.0,0.07000546]
[1773156733480,0.03,71441.0,71423.0,0.07000546]
[1773156733859,0.03,71441.0,71424.0,0.00144]
[1773156734692,0.05084393,71439.0,71423.0,0.07000546]
[1773156734994,0.03,71440.0,71412.0,0.00562]
[1773156734995,0.03,71434.0,71415.0,0.00011252]
[1773156735194,0.03,71434.0,71416.0,0.00144]
[1773156735195,0.08084393,71434.0,71416.0,0.00144]
[1773156735398,0.08084393,71434.0,71423.0,0.00022]
[1773156735829,0.03,71434.0,71416.0,0.00144]
[1773156736030,0.0699937,71435.0,71417.0,0.00144]
[1773156736031,0.03,71430.0,71417.0,0.00144]
[1773156736851,0.03,71430.0,71415.0,0.00033252]
[1773156737056,0.03,71430.0,71410.0,0.07023526]
[1773156737057,0.03,71429.0,71403.0,0.10855296]
[1773156737248,0.03,71417.0,71406.0,0.07035426]
[1773156737448,0.03,71417.0,71400.0,0.00023]
[1773156737449,0.15687512,71420.0,71388.0,0.00022]
[1773156737450,0.05084393,71414.0,71388.0,0.00022]
[1773156737704,0.05084393,71414.0,71384.0,0.07566284]
[1773156737705,0.05084393,71414.0,71384.0,0.00562]
[1773156737706,0.03,71399.0,71384.0,0.00562]
[1773156737983,0.15687512,71401.0,71384.0,1e-08]
[1773156737984,0.05075657,71397.0,71384.0,1e-08]
[1773156738209,0.00144,71398.0,71375.0,0.07076205]
[1773156738210,0.05075657,71392.0,71375.0,0.00071]
[1773156738410,0.15687512,71400.0,71357.0,0.6]
[1773156738411,0.15687512,71400.0,71366.0,0.00144]
[1773156738412,0.03,71379.0,71366.0,0.00144]
[1773156738527,0.05075657,71382.0,71366.0,0.00144]
[1773156739162,0.05075657,71382.0,71359.0,0.07006797]
[1773156739163,0.05075657,71379.0,71357.0,0.07007021]
[1773156739364,0.05075657,71379.0,71364.0,0.00144]
[1773156739995,0.07004665,71381.0,71361.0,0.00144]
[1773156739996,0.00144,71378.0,71361.0,0.00144]
[1773156740196,0.00096,71378.0,71375.0,0.00048]
[1773156740368,0.08075657,71376.0,71362.0,0.00144]
[1773156740600,0.0001748,71383.0,71362.0,0.00155244]
[1773156740798,0.0001748,71383.0,71363.0,0.00069867]
[1773156741189,0.0001748,71383.0,71364.0,0.07006333]
[1773156741587,0.0301748,71383.0,71365.0,0.00144]
[1773156741830,0.12079252,71392.0,71365.0,0.00144]
[1773156741957,0.12079252,71392.0,71364.0,0.07006333]
[1773156741958,0.07003595,71392.0,71366.0,0.00140121]
[1773156742161,0.05075657,71391.0,71367.0,0.00144]
[1773156742519,0.05075657,71391.0,71368.0,0.00144]
[1773156742726,0.03,71390.0,71369.0,0.00140101]
[1773156743427,0.03,71390.0,71370.0,0.07005744]
[1773156743725,0.10840181,71398.0,71371.0,0.0855798]
[1773156743726,0.03,71395.0,71371.0,0.0855798]
[1773156743931,0.03,71391.0,71371.0,0.0870198]
[1773156744511,0.03,71391.0,71372.0,0.00144]
[1773156744512,0.08075657,71391.0,71372.0,0.00144]
[1773156744913,0.08075657,71391.0,71373.0,0.00144]
[1773156745357,0.12767545,71398.0,71375.0,0.07005253]
[1773156745358,0.03,71390.0,71375.0,0.07005253]
[1773156745769,0.03,71390.0,71376.0,0.00248252]
[1773156745942,0.07003135,71397.0,71376.0,0.00248252]
[1773156746149,0.07002664,71402.0,71376.0,0.00248252]
[1773156746150,0.07563687,71412.0,71380.0,0.15687512]
[1773156746443,0.07563687,71412.0,71375.0,0.07005253]
[1773156746444,0.03,71404.0,71375.0,0.07028253]
[1773156746763,0.15687512,71410.0,71375.0,0.07028253]
[1773156746764,0.08075657,71398.0,71381.0,0.00144]
[1773156747613,0.08075657,71398.0,71382.0,0.07004566]
[1773156747614,0.03,71396.0,71382.0,0.07004566]
[1773156748305,0.03,71396.0,71383.0,0.00144]
[1773156748457,0.03,71396.0,71382.0,0.07004566]
[1773156748660,0.03,71395.0,71382.0,0.07004566]
[1773156748862,0.03,71395.0,71383.0,0.00144]
[1773156749075,0.03,71395.0,71354.0,0.10832886]
[1773156749271,0.03,71389.0,71376.0,0.07005155]
[1773156749467,0.08075657,71389.0,71376.0,0.07145155]
[1773156749665,0.03,71389.0,71376.0,0.07145155]
[1773156749879,0.03,71389.0,71376.0,0.07005155]
[1773156750239,0.00023,71400.0,71376.0,0.07005155]
[1773156750240,0.00023,71400.0,71379.0,0.15687512]
[1773156750440,0.00023,71400.0,71377.0,0.0014]
[1773156750441,0.00023,71400.0,71380.0,0.00140095]
[1773156750613,0.00023,71400.0,71377.0,0.0014]
[1773156750614,0.00023,71400.0,71378.0,0.00140095]
[1773156751021,0.00023,71400.0,71379.0,0.0014]
[1773156751217,0.00023,71400.0,71380.0,0.00145863]
[1773156751421,0.08616082,71409.0,71380.0,0.15833375]
[1773156751422,0.01614116,71409.0,71380.0,0.15833375]
[1773156751599,0.01614116,71409.0,71381.0,0.07004665]
[1773156751600,0.03,71408.0,71381.0,0.07004665]
[1773156751802,0.03,71408.0,71382.0,0.00145858]
[1773156752602,0.03,71408.0,71383.0,0.0014]
[1773156753211,0.03,71408.0,71381.0,0.07488927]
[1773156753438,0.03,71408.0,71384.0,0.0014]
[1773156753638,0.03,71408.0,71385.0,0.07004272]
[1773156753838,0.01614116,71409.0,71385.0,0.07004272]
[1773156754046,0.16812,71448.0,71385.0,0.07004272]
[1773156754047,0.03023,71425.0,71398.0,0.15687512]
[1773156754242,0.03023,71425.0,71399.0,0.0014]
[1773156754471,0.03023,71425.0,71401.0,0.0855798]
[1773156754699,0.03060505,71425.0,71402.0,0.0014]
[1773156754915,0.1513661,71425.0,71402.0,0.0014]
[1773156755153,0.08136162,71425.0,71401.0,0.0855798]
[1773156755423,0.08136162,71425.0,71403.0,0.0014]